[Event "Early-Titled-Tuesday-Blitz-March-19-2024"]
[Site "Chess.com"]
[Date "2024.03.19"]
[Round "7"]
[White "IMchanged"]
[Black "TitarovVasiliYouTube"]
[Result "0-1"]
[WhiteElo "2667"]
[BlackElo "2554"]
[TimeControl "180+1"]
[EndTime "9:21:01 PDT"]
[Termination "TitarovVasiliYouTube won on time"]

1. e4 {[%clk 0:02:59.8]} 1... c5 {[%clk 0:03:00.4]} 2. b4 {[%clk 0:02:59.7]}
2... cxb4 {[%clk 0:02:59.5]} 3. a3 {[%clk 0:03:00.3]} 3... d5 {[%clk 0:02:58.4]}
4. exd5 {[%clk 0:03:00.1]} 4... Qxd5 {[%clk 0:02:59.3]} 5. Nf3 {[%clk
0:03:00.7]} 5... e6 {[%clk 0:02:50.6]} 6. Bb2 {[%clk 0:02:52.9]} 6... Nf6 {[%clk
0:02:49.1]} 7. axb4 {[%clk 0:02:47.3]} 7... Bxb4 {[%clk 0:02:49]} 8. c4 {[%clk
0:02:46.1]} 8... Qe4+ {[%clk 0:02:31.6]} 9. Be2 {[%clk 0:02:45.8]} 9... Nc6
{[%clk 0:02:31]} 10. O-O {[%clk 0:02:44.7]} 10... O-O {[%clk 0:02:30.2]} 11. d4
{[%clk 0:02:37.1]} 11... Rd8 {[%clk 0:02:26.1]} 12. Bd3 {[%clk 0:02:37]} 12...
Qg4 {[%clk 0:02:23.3]} 13. h3 {[%clk 0:02:34.5]} 13... Qh5 {[%clk 0:02:22.7]}
14. Qe2 {[%clk 0:02:26.9]} 14... Bd7 {[%clk 0:02:15]} 15. Nc3 {[%clk 0:02:23.7]}
15... Ne7 {[%clk 0:01:58.7]} 16. Qe3 {[%clk 0:02:03.8]} 16... Ng6 {[%clk
0:01:54.3]} 17. Ne5 {[%clk 0:01:54.5]} 17... Be8 {[%clk 0:01:28.9]} 18. Ne2
{[%clk 0:01:45.2]} 18... Nxe5 {[%clk 0:01:08.6]} 19. dxe5 {[%clk 0:01:44]} 19...
Nd7 {[%clk 0:01:00.6]} 20. Bd4 {[%clk 0:01:37.9]} 20... a5 {[%clk 0:00:38.7]}
21. Ng3 {[%clk 0:01:35.2]} 21... Qh4 {[%clk 0:00:37.1]} 22. f4 {[%clk
0:01:34.6]} 22... Nc5 {[%clk 0:00:33.5]} 23. Bxc5 {[%clk 0:01:02.6]} 23... Bxc5
{[%clk 0:00:34.4]} 24. Qxc5 {[%clk 0:01:03]} 24... Rxd3 {[%clk 0:00:28]} 25. Ne4
{[%clk 0:01:00.6]} 25... Bc6 {[%clk 0:00:28.2]} 26. Rae1 {[%clk 0:00:44]} 26...
a4 {[%clk 0:00:21]} 27. Re3 {[%clk 0:00:33.1]} 27... Rxe3 {[%clk 0:00:18.2]} 28.
Qxe3 {[%clk 0:00:34]} 28... a3 {[%clk 0:00:17.8]} 29. Nd6 {[%clk 0:00:24.6]}
29... a2 {[%clk 0:00:13.9]} 30. Ra1 {[%clk 0:00:25.2]} 30... h5 {[%clk
0:00:13.3]} 31. Qd2 {[%clk 0:00:22.8]} 31... Ra3 {[%clk 0:00:02.2]} 32. Rxa2
{[%clk 0:00:20.7]} 32... Rxa2 {[%clk 0:00:03.1]} 33. Qxa2 {[%clk 0:00:20.8]}
33... Qxf4 {[%clk 0:00:04]} 34. Qb2 {[%clk 0:00:19]} 34... Kh7 {[%clk
0:00:03.4]} 35. Qc2+ {[%clk 0:00:19.1]} 35... g6 {[%clk 0:00:03.7]} 36. Qc3
{[%clk 0:00:19.8]} 36... Kg7 {[%clk 0:00:03.7]} 37. c5 {[%clk 0:00:19.2]} 37...
h4 {[%clk 0:00:02.1]} 38. Qb2 {[%clk 0:00:17.2]} 38... Qg5 {[%clk 0:00:02.4]}
39. Qe2 {[%clk 0:00:15]} 39... Qg3 {[%clk 0:00:02.1]} 40. Nc4 {[%clk 0:00:13.2]}
40... Qc3 {[%clk 0:00:02.2]} 41. Nd6 {[%clk 0:00:09.8]} 41... Qxc5+ {[%clk
0:00:03.1]} 42. Kh2 {[%clk 0:00:10.5]} 42... Qc3 {[%clk 0:00:02.6]} 43. Qe1
{[%clk 0:00:07.7]} 43... Qg3+ {[%clk 0:00:03.2]} 44. Qxg3 {[%clk 0:00:08.2]}
44... hxg3+ {[%clk 0:00:03.2]} 45. Kxg3 {[%clk 0:00:09.1]} 45... b5 {[%clk
0:00:02.5]} 46. Kf2 {[%clk 0:00:09.7]} 46... b4 {[%clk 0:00:02.7]} 47. Nc4
{[%clk 0:00:10.4]} 47... b3 {[%clk 0:00:02.2]} 48. Nb2 {[%clk 0:00:11]} 48...
Bd5 {[%clk 0:00:02.9]} 49. Ke3 {[%clk 0:00:11.4]} 49... Kh6 {[%clk 0:00:03.3]}
50. g3 {[%clk 0:00:11.3]} 50... Kg5 {[%clk 0:00:03.6]} 51. Nd3 {[%clk
0:00:11.8]} 51... Kf5 {[%clk 0:00:03.2]} 52. Kd4 {[%clk 0:00:09.9]} 52... g5
{[%clk 0:00:02]} 53. g4+ {[%clk 0:00:10]} 53... Kg6 {[%clk 0:00:02.6]} 54. Kc3
{[%clk 0:00:06.7]} 54... Bg2 {[%clk 0:00:03]} 55. Nf2 {[%clk 0:00:06.7]} 55...
Bd5 {[%clk 0:00:02.8]} 56. Nd3 {[%clk 0:00:06.6]} 56... f6 {[%clk 0:00:02.6]}
57. exf6 {[%clk 0:00:07.5]} 57... Kxf6 {[%clk 0:00:03.5]} 58. Kd4 {[%clk
0:00:07.9]} 58... Bg2 {[%clk 0:00:03.1]} 59. Kc3 {[%clk 0:00:07]} 59... Bxh3
{[%clk 0:00:03]} 60. Nf2 {[%clk 0:00:07.6]} 60... Bf1 {[%clk 0:00:02.9]} 61.
Kxb3 {[%clk 0:00:08.1]} 61... Ke5 {[%clk 0:00:03.7]} 62. Kc3 {[%clk 0:00:08.7]}
62... Kf4 {[%clk 0:00:04.1]} 63. Kd2 {[%clk 0:00:09.4]} 63... Kf3 {[%clk
0:00:04.1]} 64. Ke1 {[%clk 0:00:09.8]} 64... Bc4 {[%clk 0:00:03.4]} 65. Nd1
{[%clk 0:00:09.7]} 65... Bd5 {[%clk 0:00:02.6]} 66. Nc3 {[%clk 0:00:09.3]} 66...
Kxg4 {[%clk 0:00:02.3]} 67. Kf2 {[%clk 0:00:10]} 67... Kf4 {[%clk 0:00:02.6]}
68. Ne2+ {[%clk 0:00:10.6]} 68... Ke5 {[%clk 0:00:03]} 69. Ke3 {[%clk
0:00:10.8]} 69... Ba8 {[%clk 0:00:02.5]} 70. Ng3 {[%clk 0:00:11.2]} 70... g4
{[%clk 0:00:02.2]} 71. Ne2 {[%clk 0:00:11.1]} 71... Bf3 {[%clk 0:00:03.1]} 72.
Ng3 {[%clk 0:00:11.4]} 72... Kd5 {[%clk 0:00:03]} 73. Nh5 {[%clk 0:00:10.9]}
73... e5 {[%clk 0:00:03.2]} 74. Ng3 {[%clk 0:00:10.8]} 74... Ke6 {[%clk
0:00:03.2]} 75. Nh5 {[%clk 0:00:11.1]} 75... Kf5 {[%clk 0:00:03]} 76. Ng3+
{[%clk 0:00:11.8]} 76... Kg5 {[%clk 0:00:03.5]} 77. Nf1 {[%clk 0:00:12.2]} 77...
Kh4 {[%clk 0:00:03.7]} 78. Kf2 {[%clk 0:00:11.7]} 78... Kh3 {[%clk 0:00:03.6]}
79. Ng3 {[%clk 0:00:11.1]} 79... e4 {[%clk 0:00:03.3]} 80. Nf5 {[%clk
0:00:11.7]} 80... Kh2 {[%clk 0:00:03.1]} 81. Nd4 {[%clk 0:00:06.2]} 81... g3+
{[%clk 0:00:03.4]} 82. Ke3 {[%clk 0:00:06.7]} 82... g2 {[%clk 0:00:03.9]} 0-1

[Event "Early-Titled-Tuesday-Blitz-March-19-2024"]
[Site "Chess.com"]
[Date "2024.03.19"]
[Round "7"]
[White "Kacparov"]
[Black "Korchmar_Vasiliy"]
[Result "1-0"]
[WhiteElo "2913"]
[BlackElo "2695"]
[TimeControl "180+1"]
[EndTime "9:21:11 PDT"]
[Termination "Kacparov won on time"]

1. e4 {[%clk 0:01:44.2]} 1... c5 {[%clk 0:02:57.6]} 2. Nf3 {[%clk 0:01:44.1]}
2... d6 {[%clk 0:02:57.7]} 3. d4 {[%clk 0:01:44]} 3... cxd4 {[%clk 0:02:58.6]}
4. Nxd4 {[%clk 0:01:44.8]} 4... Nf6 {[%clk 0:02:59.2]} 5. f3 {[%clk 0:01:45.2]}
5... e5 {[%clk 0:02:58.9]} 6. Nb3 {[%clk 0:01:45.6]} 6... Be6 {[%clk 0:02:59.6]}
7. c4 {[%clk 0:01:45.9]} 7... Nbd7 {[%clk 0:03:00.2]} 8. Nc3 {[%clk 0:01:46.4]}
8... Rc8 {[%clk 0:03:00.8]} 9. Be3 {[%clk 0:01:46.8]} 9... Bxc4 {[%clk
0:03:00.5]} 10. Bxc4 {[%clk 0:01:47.2]} 10... Rxc4 {[%clk 0:03:01.4]} 11. Qd3
{[%clk 0:01:47.9]} 11... Rc8 {[%clk 0:03:01.1]} 12. O-O {[%clk 0:01:22]} 12...
Be7 {[%clk 0:02:58.6]} 13. Rac1 {[%clk 0:01:14.3]} 13... a6 {[%clk 0:02:58.3]}
14. Nd5 {[%clk 0:01:11.4]} 14... Rxc1 {[%clk 0:02:50.5]} 15. Rxc1 {[%clk
0:01:11.2]} 15... Nxd5 {[%clk 0:02:47.1]} 16. Qxd5 {[%clk 0:01:09.1]} 16... O-O
{[%clk 0:02:34.1]} 17. Qxb7 {[%clk 0:01:07.2]} 17... a5 {[%clk 0:01:54.7]} 18.
Rc7 {[%clk 0:01:04.8]} 18... Bg5 {[%clk 0:01:55.1]} 19. Bf2 {[%clk 0:00:48.8]}
19... Nc5 {[%clk 0:01:50.1]} 20. Nxc5 {[%clk 0:00:45.3]} 20... dxc5 {[%clk
0:01:51]} 21. Rd7 {[%clk 0:00:45.7]} 21... Qf6 {[%clk 0:01:13.2]} 22. Bxc5
{[%clk 0:00:45.1]} 22... Re8 {[%clk 0:01:12.7]} 23. Rd1 {[%clk 0:00:39.5]} 23...
h5 {[%clk 0:01:11.3]} 24. Qb6 {[%clk 0:00:29.8]} 24... Re6 {[%clk 0:00:56.5]}
25. Qxa5 {[%clk 0:00:28.1]} 25... Ra6 {[%clk 0:00:57.2]} 26. Qb5 {[%clk
0:00:24.4]} 26... Rxa2 {[%clk 0:00:57.1]} 27. Bf2 {[%clk 0:00:21.1]} 27... h4
{[%clk 0:00:54.8]} 28. h3 {[%clk 0:00:21.3]} 28... Kh7 {[%clk 0:00:52.8]} 29.
Qb3 {[%clk 0:00:21.5]} 29... Ra6 {[%clk 0:00:47.3]} 30. Qd5 {[%clk 0:00:21.5]}
30... Bf4 {[%clk 0:00:44]} 31. b4 {[%clk 0:00:21.8]} 31... Rc6 {[%clk
0:00:42.1]} 32. b5 {[%clk 0:00:21.4]} 32... Rc2 {[%clk 0:00:42.8]} 33. Qd3
{[%clk 0:00:20.5]} 33... Rb2 {[%clk 0:00:37.4]} 34. b6 {[%clk 0:00:20.1]} 34...
Qg6 {[%clk 0:00:26.9]} 35. Qf1 {[%clk 0:00:17.3]} 35... Qg5 {[%clk 0:00:19.5]}
36. Kh1 {[%clk 0:00:14.6]} 36... Be3 {[%clk 0:00:19.8]} 37. Bxe3 {[%clk
0:00:09.4]} 37... Qxe3 {[%clk 0:00:20.7]} 38. Rb1 {[%clk 0:00:09.7]} 38... Qxb6
{[%clk 0:00:20.7]} 39. Rxb2 {[%clk 0:00:10]} 39... Qxb2 {[%clk 0:00:21.6]} 40.
Qe1 {[%clk 0:00:10.5]} 40... g5 {[%clk 0:00:20.3]} 41. Qd1 {[%clk 0:00:11.1]}
41... Qf2 {[%clk 0:00:17.9]} 42. Qd5 {[%clk 0:00:10.5]} 42... Qe1+ {[%clk
0:00:17.4]} 43. Kh2 {[%clk 0:00:11.1]} 43... Qg3+ {[%clk 0:00:17.5]} 44. Kh1
{[%clk 0:00:11.8]} 44... Qe1+ {[%clk 0:00:17.5]} 45. Kh2 {[%clk 0:00:12.5]}
45... Qg3+ {[%clk 0:00:18.1]} 46. Kh1 {[%clk 0:00:13]} 46... Qf4 {[%clk
0:00:14.9]} 47. Kg1 {[%clk 0:00:11.9]} 47... Qc1+ {[%clk 0:00:13.6]} 48. Kh2
{[%clk 0:00:12.4]} 48... Qf4+ {[%clk 0:00:14.5]} 49. Kg1 {[%clk 0:00:12.9]}
49... Qc1+ {[%clk 0:00:14.9]} 50. Kh2 {[%clk 0:00:13.4]} 50... Qf4+ {[%clk
0:00:15.4]} 51. Kh1 {[%clk 0:00:13.9]} 51... Kg7 {[%clk 0:00:15.1]} 52. Qd6
{[%clk 0:00:13.7]} 52... Qc1+ {[%clk 0:00:15]} 53. Kh2 {[%clk 0:00:14]} 53...
Qf4+ {[%clk 0:00:15.4]} 54. Kh1 {[%clk 0:00:14.7]} 54... g4 {[%clk 0:00:12.7]}
55. hxg4 {[%clk 0:00:13.1]} 55... h3 {[%clk 0:00:13.2]} 56. Qd1 {[%clk
0:00:11.2]} 56... Qg3 {[%clk 0:00:10.5]} 57. Qf1 {[%clk 0:00:10.6]} 57... hxg2+
{[%clk 0:00:06.8]} 58. Qxg2 {[%clk 0:00:10.9]} 58... Qe1+ {[%clk 0:00:07.2]} 59.
Qg1 {[%clk 0:00:10.9]} 59... Qe2 {[%clk 0:00:06.1]} 60. Qg3 {[%clk 0:00:10.9]}
60... f6 {[%clk 0:00:04.7]} 61. Kg1 {[%clk 0:00:11.4]} 61... Kg6 {[%clk
0:00:04.5]} 62. Qf2 {[%clk 0:00:11.8]} 62... Qd1+ {[%clk 0:00:04.3]} 63. Kg2
{[%clk 0:00:12.4]} 63... Qc1 {[%clk 0:00:04.3]} 64. Qe2 {[%clk 0:00:12.7]} 64...
Kg7 {[%clk 0:00:04]} 65. Qd3 {[%clk 0:00:13.1]} 65... Qb2+ {[%clk 0:00:04]} 66.
Kg3 {[%clk 0:00:13.3]} 66... Qc1 {[%clk 0:00:04.7]} 67. Kf2 {[%clk 0:00:13.7]}
67... Qb2+ {[%clk 0:00:04.6]} 68. Ke3 {[%clk 0:00:14.3]} 68... Qc1+ {[%clk
0:00:04.7]} 69. Qd2 {[%clk 0:00:14.9]} 69... Qg1+ {[%clk 0:00:04.2]} 70. Kd3
{[%clk 0:00:15.4]} 70... Qf1+ {[%clk 0:00:04.3]} 71. Ke3 {[%clk 0:00:15.5]}
71... Qg1+ {[%clk 0:00:04.5]} 72. Kd3 {[%clk 0:00:15.8]} 72... Qf1+ {[%clk
0:00:04.8]} 73. Qe2 {[%clk 0:00:16.4]} 73... Qb1+ {[%clk 0:00:05.1]} 74. Kc3
{[%clk 0:00:17]} 74... Qc1+ {[%clk 0:00:04.8]} 75. Qc2 {[%clk 0:00:17]} 75...
Qe3+ {[%clk 0:00:04.6]} 76. Qd3 {[%clk 0:00:17.3]} 76... Qc5+ {[%clk 0:00:04.9]}
77. Kd2 {[%clk 0:00:16.6]} 77... Qf2+ {[%clk 0:00:05.2]} 78. Kd1 {[%clk
0:00:17.2]} 78... Qg1+ {[%clk 0:00:05.2]} 79. Kc2 {[%clk 0:00:17.2]} 79... Qf2+
{[%clk 0:00:05.5]} 80. Kb3 {[%clk 0:00:17]} 80... Qb6+ {[%clk 0:00:05.1]} 81.
Ka4 {[%clk 0:00:17.2]} 81... Qa7+ {[%clk 0:00:04.8]} 82. Kb4 {[%clk 0:00:17.6]}
82... Qb6+ {[%clk 0:00:05.2]} 83. Qb5 {[%clk 0:00:17.4]} 83... Qd4+ {[%clk
0:00:04.9]} 84. Qc4 {[%clk 0:00:17.9]} 84... Qb2+ {[%clk 0:00:03.8]} 85. Kc5
{[%clk 0:00:17.1]} 85... Qf2+ {[%clk 0:00:03.9]} 86. Kd6 {[%clk 0:00:17.3]}
86... Qxf3 {[%clk 0:00:04.8]} 87. Ke7 {[%clk 0:00:11]} 87... Qxg4 {[%clk
0:00:02.8]} 88. Qf7+ {[%clk 0:00:11.1]} 88... Kh6 {[%clk 0:00:01.7]} 89. Qxf6+
{[%clk 0:00:11.6]} 89... Qg6 {[%clk 0:00:01.8]} 90. Qxg6+ {[%clk 0:00:11.5]}
90... Kxg6 {[%clk 0:00:02.1]} 91. Ke6 {[%clk 0:00:12.1]} 91... Kg7 {[%clk
0:00:01.6]} 92. Kxe5 {[%clk 0:00:12.7]} 92... Kf7 {[%clk 0:00:02.2]} 93. Kd6
{[%clk 0:00:12.2]} 93... Ke8 {[%clk 0:00:01.7]} 94. Ke6 {[%clk 0:00:12.7]} 1-0

[Event "Early-Titled-Tuesday-Blitz-March-19-2024"]
[Site "Chess.com"]
[Date "2024.03.19"]
[Round "7"]
[White "MagnusCarlsen"]
[Black "HansOnTwitch"]
[Result "1-0"]
[WhiteElo "3273"]
[BlackElo "3077"]
[TimeControl "180+1"]
[EndTime "9:21:24 PDT"]
[Termination "MagnusCarlsen won by resignation"]

1. e4 {[%clk 0:03:00.9]} 1... c5 {[%clk 0:02:59.5]} 2. Nf3 {[%clk 0:02:56.1]}
2... d6 {[%clk 0:02:59.7]} 3. d4 {[%clk 0:02:55.9]} 3... cxd4 {[%clk 0:03:00.6]}
4. Nxd4 {[%clk 0:02:56.3]} 4... Nf6 {[%clk 0:03:01.2]} 5. Nc3 {[%clk 0:02:56.9]}
5... a6 {[%clk 0:03:01.8]} 6. Be3 {[%clk 0:02:57.3]} 6... e5 {[%clk 0:03:01]} 7.
Nf3 {[%clk 0:02:57.4]} 7... Be7 {[%clk 0:02:59.8]} 8. Bc4 {[%clk 0:02:57.2]}
8... O-O {[%clk 0:02:56.8]} 9. O-O {[%clk 0:02:57]} 9... Be6 {[%clk 0:02:57]}
10. Bxe6 {[%clk 0:02:56.4]} 10... fxe6 {[%clk 0:02:57.9]} 11. Na4 {[%clk
0:02:56.6]} 11... Nfd7 {[%clk 0:02:54.3]} 12. c4 {[%clk 0:02:53.1]} 12... Nc6
{[%clk 0:02:54.1]} 13. Rc1 {[%clk 0:02:50.7]} 13... b6 {[%clk 0:02:54.2]} 14.
Qb3 {[%clk 0:02:39]} 14... Rb8 {[%clk 0:02:32.9]} 15. c5 {[%clk 0:02:36.1]}
15... Nxc5 {[%clk 0:02:30.4]} 16. Nxc5 {[%clk 0:02:34.4]} 16... bxc5 {[%clk
0:02:29.6]} 17. Qxe6+ {[%clk 0:02:34.5]} 17... Kh8 {[%clk 0:02:30.2]} 18. b3
{[%clk 0:02:29.8]} 18... Nd4 {[%clk 0:02:28.5]} 19. Bxd4 {[%clk 0:02:30]} 19...
exd4 {[%clk 0:02:29.4]} 20. e5 {[%clk 0:02:28.7]} 20... d5 {[%clk 0:02:23.4]}
21. Qg4 {[%clk 0:02:15]} 21... Rb4 {[%clk 0:01:55.1]} 22. Rfd1 {[%clk
0:02:06.5]} 22... Qe8 {[%clk 0:01:45]} 23. Qe6 {[%clk 0:02:03.3]} 23... Qf7
{[%clk 0:01:35.2]} 24. Qxf7 {[%clk 0:02:01.6]} 24... Rxf7 {[%clk 0:01:35.2]} 25.
Ne1 {[%clk 0:02:02.5]} 25... g5 {[%clk 0:01:18.5]} 26. Nd3 {[%clk 0:01:55.1]}
26... Rb5 {[%clk 0:01:18.4]} 27. g3 {[%clk 0:01:55]} 27... Kg7 {[%clk
0:01:16.7]} 28. e6 {[%clk 0:01:36.7]} 28... Rf8 {[%clk 0:01:07.8]} 29. a4 {[%clk
0:01:24.2]} 29... Rxb3 {[%clk 0:01:03.6]} 30. Nxc5 {[%clk 0:01:24.3]} 30... Rc3
{[%clk 0:01:04.1]} 31. Nxa6 {[%clk 0:01:10.9]} 31... Rfc8 {[%clk 0:01:03.4]} 32.
Rb1 {[%clk 0:01:10.9]} 32... d3 {[%clk 0:01:03.4]} 33. Kg2 {[%clk 0:01:04]}
33... R8c4 {[%clk 0:00:54.2]} 34. a5 {[%clk 0:00:56.7]} 34... Ra3 {[%clk
0:00:46.1]} 35. Rb7 {[%clk 0:00:45.8]} 35... Kf6 {[%clk 0:00:44.3]} 36. Nc7
{[%clk 0:00:46.1]} 36... Bc5 {[%clk 0:00:36.9]} 37. Re1 {[%clk 0:00:37]} 37...
d2 {[%clk 0:00:13.8]} 38. Nxd5+ {[%clk 0:00:36.4]} 38... Kf5 {[%clk 0:00:07.5]}
39. Rd1 {[%clk 0:00:21.5]} 39... Rd3 {[%clk 0:00:06.7]} 40. e7 {[%clk
0:00:18.4]} 40... Re4 {[%clk 0:00:06.6]} 41. Rb8 {[%clk 0:00:11.3]} 41... Bxe7
{[%clk 0:00:04.8]} 42. Nxe7+ {[%clk 0:00:11.4]} 42... Rxe7 {[%clk 0:00:05.4]}
43. Rb2 {[%clk 0:00:11.4]} 43... Ra7 {[%clk 0:00:04.5]} 44. Rbxd2 {[%clk
0:00:10.4]} 44... Rxd2 {[%clk 0:00:04.8]} 45. Rxd2 {[%clk 0:00:11.3]} 45... Rxa5
{[%clk 0:00:05.3]} 46. Rd7 {[%clk 0:00:11.2]} 46... h5 {[%clk 0:00:05.7]} 47.
Rd6 {[%clk 0:00:11.2]} 47... g4 {[%clk 0:00:05.4]} 48. h4 {[%clk 0:00:11.3]}
48... Ke4 {[%clk 0:00:04.4]} 49. Rf6 {[%clk 0:00:11.1]} 49... Re5 {[%clk
0:00:04.4]} 50. Rf4+ {[%clk 0:00:11]} 50... Kd5 {[%clk 0:00:04.6]} 51. Kf1
{[%clk 0:00:11.9]} 51... Ke6 {[%clk 0:00:04.9]} 52. Rf8 {[%clk 0:00:10.7]} 52...
Ke7 {[%clk 0:00:05.5]} 53. Rh8 {[%clk 0:00:09.8]} 53... Kf7 {[%clk 0:00:05.6]}
54. Ra8 {[%clk 0:00:10.1]} 54... Kg6 {[%clk 0:00:05.9]} 55. Ra3 {[%clk
0:00:09.7]} 55... Rd5 {[%clk 0:00:05.8]} 56. Re3 {[%clk 0:00:10.6]} 56... Rf5
{[%clk 0:00:05.9]} 57. Ke2 {[%clk 0:00:11.5]} 57... Rd5 {[%clk 0:00:05.5]} 58.
Re6+ {[%clk 0:00:11.4]} 58... Kg7 {[%clk 0:00:05.5]} 59. Ke3 {[%clk 0:00:11.4]}
59... Rf5 {[%clk 0:00:06.2]} 60. Re4 {[%clk 0:00:11.8]} 60... Rf3+ {[%clk
0:00:06.5]} 61. Ke2 {[%clk 0:00:12.5]} 61... Rf5 {[%clk 0:00:07.2]} 62. Rf4
{[%clk 0:00:13]} 62... Re5+ {[%clk 0:00:04]} 63. Kd3 {[%clk 0:00:13.2]} 63...
Ra5 {[%clk 0:00:04.4]} 64. Ke4 {[%clk 0:00:10.8]} 64... Kg6 {[%clk 0:00:05]} 65.
Rf8 {[%clk 0:00:07.8]} 65... Ra4+ {[%clk 0:00:05.4]} 66. Ke3 {[%clk 0:00:07.9]}
66... Ra3+ {[%clk 0:00:05.9]} 67. Ke2 {[%clk 0:00:08.4]} 67... Ra2+ {[%clk
0:00:06.5]} 68. Kf1 {[%clk 0:00:08.7]} 68... Ra1+ {[%clk 0:00:07.1]} 69. Kg2
{[%clk 0:00:09.2]} 69... Kh6 {[%clk 0:00:05.7]} 70. Rh8+ {[%clk 0:00:08.8]}
70... Kg6 {[%clk 0:00:06.3]} 71. Rg8+ {[%clk 0:00:09.1]} 71... Kh6 {[%clk
0:00:06.7]} 72. Rb8 {[%clk 0:00:09.9]} 72... Kg6 {[%clk 0:00:06.7]} 73. Rb6+
{[%clk 0:00:09.1]} 73... Kg7 {[%clk 0:00:07.2]} 74. Rb3 {[%clk 0:00:07.4]} 74...
Kg6 {[%clk 0:00:06.9]} 75. f4 {[%clk 0:00:07.5]} 75... gxf3+ {[%clk 0:00:06.1]}
76. Kxf3 {[%clk 0:00:07.5]} 76... Ra4 {[%clk 0:00:04.9]} 77. Rb6+ {[%clk
0:00:07.4]} 77... Kg7 {[%clk 0:00:05.4]} 78. Rb5 {[%clk 0:00:07.8]} 78... Kg6
{[%clk 0:00:05.8]} 79. Rg5+ {[%clk 0:00:08.4]} 79... Kh6 {[%clk 0:00:06.4]} 80.
Re5 {[%clk 0:00:09.2]} 80... Kg6 {[%clk 0:00:06.5]} 81. Re6+ {[%clk 0:00:09.7]}
81... Kg7 {[%clk 0:00:06.7]} 82. Re4 {[%clk 0:00:10.4]} 82... Ra5 {[%clk
0:00:05.8]} 83. Kf4 {[%clk 0:00:10.4]} 83... Kf6 {[%clk 0:00:06.2]} 84. Rb4
{[%clk 0:00:10.7]} 84... Rf5+ {[%clk 0:00:06.4]} 85. Ke4 {[%clk 0:00:11.4]}
85... Re5+ {[%clk 0:00:06.9]} 86. Kf3 {[%clk 0:00:11.1]} 86... Ra5 {[%clk
0:00:06.8]} 87. Rb6+ {[%clk 0:00:11.5]} 87... Kg7 {[%clk 0:00:03.9]} 88. Re6
{[%clk 0:00:11.9]} 88... Rb5 {[%clk 0:00:03]} 89. Kf4 {[%clk 0:00:12]} 89...
Rb4+ {[%clk 0:00:02.7]} 90. Re4 {[%clk 0:00:12.4]} 90... Rb5 {[%clk 0:00:02.7]}
91. Re5 {[%clk 0:00:12.8]} 91... Rb4+ {[%clk 0:00:03.3]} 92. Kf3 {[%clk
0:00:12.2]} 92... Kf6 {[%clk 0:00:03.4]} 93. Rxh5 {[%clk 0:00:12.2]} 93... Kg6
{[%clk 0:00:04]} 94. Rg5+ {[%clk 0:00:12.4]} 94... Kh6 {[%clk 0:00:04.7]} 95.
Re5 {[%clk 0:00:13]} 95... Rb3+ {[%clk 0:00:05.2]} 96. Kf4 {[%clk 0:00:12.8]}
96... Rb4+ {[%clk 0:00:05.8]} 97. Re4 {[%clk 0:00:13.1]} 97... Rb7 {[%clk
0:00:05.9]} 98. Re6+ {[%clk 0:00:13.3]} 98... Kh7 {[%clk 0:00:06.1]} 99. g4
{[%clk 0:00:13.5]} 99... Rb4+ {[%clk 0:00:05.8]} 100. Kf5 {[%clk 0:00:13.7]}
100... Rb5+ {[%clk 0:00:06.4]} 101. Re5 {[%clk 0:00:14.1]} 101... Rb7 {[%clk
0:00:07]} 102. h5 {[%clk 0:00:14.5]} 102... Rf7+ {[%clk 0:00:07.2]} 103. Kg5
{[%clk 0:00:14.8]} 103... Rg7+ {[%clk 0:00:08]} 104. Kh4 {[%clk 0:00:15.1]}
104... Rb7 {[%clk 0:00:08.7]} 105. Re4 {[%clk 0:00:15.7]} 105... Rb5 {[%clk
0:00:08.9]} 106. Re7+ {[%clk 0:00:15.6]} 106... Kg8 {[%clk 0:00:08.4]} 107. h6
{[%clk 0:00:16.1]} 107... Kh8 {[%clk 0:00:08.6]} 108. g5 {[%clk 0:00:16.3]}
108... Rb6 {[%clk 0:00:09]} 109. Kh5 {[%clk 0:00:16.4]} 1-0